bitfinex/quotes_ETHUSD_20250722
["timestamp","ask_amount","ask_price","bid_price","bid_amount"]
[1753146306718,2.68211565,3728.4,3728.3,0.001]
[1753146307280,7.15311565,3728.4,3728.3,0.001]
[1753146307485,11.27401565,3728.4,3728.3,0.001]
[1753146307709,6.80315953,3728.2,3728.1,1e-08]
[1753146307905,16.24592776,3728.2,3728.1,1e-08]
[1753146308107,16.71982776,3728.2,3728.1,1e-08]
[1753146308318,21.19082776,3728.2,3728.1,1e-08]
[1753146308589,21.18982776,3728.2,3728.1,1e-08]
[1753146309286,11.74505953,3728.2,3728.1,1e-08]
[1753146309483,13.35205953,3728.2,3728.1,1e-08]
[1753146310128,6.72705953,3728.2,3728.1,1e-08]
[1753146310429,6.25315953,3728.2,3728.1,1e-08]
[1753146310631,4.465,3728.2,3728.1,1e-08]
[1753146310931,10.14725953,3728.2,3728.1,1e-08]
[1753146311129,7.465,3728.2,3728.1,1e-08]
[1753146311487,7.14725953,3728.2,3728.1,1e-08]
[1753146311694,7.69725953,3728.2,3728.1,1e-08]
[1753146311891,7.14725953,3728.2,3728.1,1e-08]
[1753146312099,3.25287655,3728.6,3728.1,1e-08]
[1753146312394,2.68219744,3728.3,3728.1,1e-08]
[1753146312596,4.464,3728.3,3728.1,1e-08]
[1753146312824,0.5709,3729.0,3728.2,0.4644]
[1753146312981,0.4739,3729.5,3728.6,0.7584]
[1753146312982,3.2522343,3729.5,3728.6,0.7584]
[1753146313185,2.68158705,3729.2,3728.6,0.7584]
[1753146313440,4.463,3729.1,3728.3,0.4644]
[1753146313621,4.465,3729.0,3728.5,2.68204004]
[1753146313803,4.465,3729.0,3728.3,3.14657629]
[1753146313984,4.465,3729.0,3728.4,3.14648103]
[1753146313985,0.1336,3728.7,3728.4,3.14648103]
[1753146314190,4.465,3729.0,3728.5,3.90484371]
[1753146314191,0.1336,3728.9,3728.5,3.90484371]
[1753146314389,0.1336,3728.9,3728.6,0.4644]
[1753146314695,0.002,3729.0,3728.7,0.4644]
[1753146315021,0.002,3729.0,3728.9,2.68175601]
[1753146315229,0.002,3729.0,3728.8,2.68176949]
[1753146315436,0.002,3729.0,3728.8,3.14616949]
[1753146315588,0.002,3729.0,3728.9,2.68175601]
[1753146315788,0.002,3729.0,3728.9,3.14615601]
[1753146316088,0.002,3729.0,3728.6,0.4644]
[1753146316290,0.002,3729.0,3728.5,1.2228]
[1753146316487,0.002,3729.0,3728.6,0.4644]
[1753146316702,0.1336,3728.9,3728.6,0.4644]
[1753146316906,0.1336,3728.9,3728.8,2.68182793]
[1753146317100,2.68175601,3728.9,3728.5,0.7584]
[1753146317355,0.1336,3728.6,3728.2,0.8288]
[1753146317495,0.002,3729.0,3728.2,0.8288]
[1753146317684,2.68187355,3728.8,3728.3,0.4565]
[1753146317892,2.68375295,3729.0,3728.4,0.4565]
[1753146317893,0.002,3729.0,3728.4,0.4565]
[1753146318089,0.002,3729.0,3728.2,0.8288]
[1753146318090,0.1336,3728.5,3728.2,0.8288]
[1753146318550,0.1336,3728.5,3728.3,0.4565]
[1753146319729,0.1336,3728.5,3728.4,0.4565]
[1753146320433,0.002,3729.0,3728.5,2.68198393]
[1753146320434,0.1356,3729.0,3728.5,2.68198393]
[1753146320733,0.1356,3729.0,3728.7,2.68188141]
[1753146320894,0.002,3729.0,3728.9,2.68175601]
[1753146321108,0.002,3729.0,3728.9,3.13825601]
[1753146321617,0.002,3729.0,3728.9,4.52152569]
[1753146321945,0.002,3729.0,3728.9,4.68194325]
[1753146322852,1e-08,3729.0,3728.9,4.65512569]
[1753146324063,1e-08,3729.0,3728.9,4.68194325]
[1753146324356,0.002,3729.8,3728.9,4.68194325]
[1753146324357,0.002,3729.8,3729.7,3.46618079]
[1753146324562,0.002,3730.5,3730.4,2.68067767]
[1753146324728,0.002,3730.5,3730.4,3.46567767]
[1753146324907,0.002,3730.5,3730.4,4.05577767]
[1753146326254,0.002,3730.5,3729.7,0.61474468]
[1753146326546,2.68072422,3730.4,3730.0,0.1336]
[1753146326706,2.6826275,3730.5,3730.0,0.1336]
[1753146326904,0.002,3730.5,3730.0,0.1336]
[1753146327434,0.002,3730.5,3730.0,2.8144967]
[1753146327605,0.002,3730.5,3730.1,0.4565]
[1753146328004,0.002,3730.5,3730.0,0.8945]
[1753146328214,2.68261195,3730.5,3730.0,0.8945]
[1753146328431,0.2816212,3730.4,3730.0,0.1336]
[1753146328635,0.2816212,3730.4,3729.7,0.4565]
[1753146328834,2.68086726,3730.2,3729.7,0.1336]
[1753146329244,2.68101312,3730.0,3729.7,0.1336]
[1753146329442,2.68091172,3730.1,3729.7,0.1336]
[1753146329809,0.1336,3730.4,3729.7,0.1336]
[1753146330050,0.1336,3730.4,3729.8,0.4565]
[1753146330235,0.002,3730.5,3730.0,0.1336]
[1753146330616,0.002,3730.5,3730.1,0.4565]
[1753146330814,0.002,3730.5,3730.3,0.7609]
[1753146331021,0.7609,3730.3,3724.9,2.817]
[1753146331221,0.419,3726.5,3722.1,0.02]
[1753146331560,3.0,3723.5,3721.1,1e-08]
[1753146331730,13.16308029,3721.2,3721.1,1e-08]
[1753146331934,11.25984674,3721.2,3721.1,1e-08]
[1753146332235,6.95059408,3721.2,3721.1,1e-08]
[1753146332410,13.72459564,3721.2,3721.1,1e-08]
[1753146332613,7.45059408,3721.2,3721.1,1e-08]
[1753146332857,19.07859564,3721.2,3721.1,1e-08]
[1753146333042,3.18802752,3720.2,3719.2,0.0062709]
[1753146333358,0.5,3718.5,3717.7,0.4565]
[1753146333567,0.69901022,3719.5,3717.7,0.4565]
[1753146333717,0.5590837,3719.4,3717.7,0.4565]
[1753146333923,0.5,3719.2,3717.7,0.4565]
[1753146334123,4.91959682,3718.5,3717.7,0.4565]
[1753146334441,9.65924077,3718.7,3717.7,0.4565]
[1753146334768,6.35077385,3718.8,3718.6,2.6891841]
[1753146335066,3.98758319,3718.9,3718.7,0.4565]
[1753146335226,11.07715517,3719.1,3718.9,2.68896716]
[1753146335414,2.34380997,3719.0,3718.9,2.68896716]
[1753146335611,6.14429572,3720.3,3720.2,2.68802752]
[1753146335849,6.22687408,3720.3,3719.6,5.20037715]
[1753146336021,6.22687408,3720.3,3720.2,2.68802752]
[1753146336022,4.70761836,3720.3,3720.2,2.68802752]
[1753146336232,7.56221012,3720.8,3720.7,3.45446629]
[1753146336424,7.56221012,3720.8,3720.7,0.7668]
[1753146336621,0.5,3722.0,3720.7,0.7668]
[1753146336825,7.56221012,3722.1,3720.8,2.71445151]
[1753146337062,8.06221012,3722.1,3720.9,0.34812515]
[1753146337253,0.5,3721.8,3720.9,0.34812515]
[1753146337458,1.0,3721.8,3720.9,0.34812515]
[1753146337775,0.386743,3722.0,3721.0,0.02687449]
[1753146337923,0.886743,3722.0,3720.7,0.7668]
[1753146338130,5.534,3721.9,3721.0,2.68742512]
[1753146338349,0.24171931,3721.8,3720.7,0.7668]
[1753146338628,9.45276265,3721.4,3720.7,0.7668]
[1753146339052,0.5,3721.3,3720.7,0.766]
[1753146339369,0.5,3720.4,3718.1,5.525]
[1753146339564,5.525,3720.3,3718.1,5.525]
[1753146339763,5.521,3720.2,3718.1,5.525]
[1753146340068,3.18817204,3720.0,3717.3,6.441]
[1753146340250,0.5,3719.4,3717.3,6.441]
[1753146340428,5.515,3719.3,3718.5,2.689208]
[1753146340631,5.515,3719.3,3717.5,2.68997982]
[1753146340827,12.86942874,3718.0,3717.9,2.68969041]
[1753146341027,3.64487934,3718.0,3717.9,5.68969041]
[1753146341228,3.64487934,3718.0,3717.9,2.82409041]
[1753146341462,3.64487934,3718.0,3717.9,3.3754795]
[1753146341827,3.64487934,3718.0,3717.2,2.73660316]
[1753146342027,3.64487934,3718.0,3717.9,3.62709041]
[1753146342227,3.64487934,3718.0,3717.9,0.9374]
[1753146342871,11.50141369,3718.3,3717.9,0.9374]
[1753146343054,12.80544329,3718.1,3717.9,0.1344]
[1753146343257,0.5,3717.9,3715.0,6.445]
[1753146343473,12.80544329,3718.1,3718.0,0.1344]
[1753146343630,12.80544329,3718.1,3717.0,2.69032783]
[1753146343830,12.80544329,3718.1,3718.0,0.1344]
[1753146344255,12.80544329,3718.1,3718.0,2.82401807]
[1753146344472,12.80544329,3718.1,3715.1,9.53101728]
[1753146344673,12.80544329,3718.1,3717.4,2.69004075]
[1753146344974,0.5,3717.9,3716.1,5.69095352]
[1753146345272,12.80544329,3717.1,3717.0,2.69034167]
[1753146345783,12.80544329,3717.1,3716.4,2.69077194]
[1753146345987,10.91919083,3716.7,3716.6,2.69056246]
[1753146346192,10.91919083,3716.7,3715.9,0.02691138]
[1753146346474,10.91919083,3716.7,3715.5,0.8229]
[1753146346675,10.91919083,3716.7,3715.9,2.69113808]
[1753146346676,9.09091792,3716.0,3715.9,2.69113808]
[1753146346829,9.08762071,3716.0,3715.9,2.69113808]
[1753146347278,9.08762071,3716.0,3715.9,2.64113808]
[1753146347585,9.08762071,3716.0,3714.1,0.02]
[1753146347586,0.5,3715.6,3714.1,0.02]
[1753146347876,11.74369083,3716.7,3714.1,0.02]
[1753146347877,10.91919083,3716.7,3716.6,2.69063122]
[1753146348078,10.90548918,3717.9,3717.6,2.47727101]
[1753146348248,11.35008918,3717.9,3715.7,2.69128293]
[1753146348449,0.5,3717.6,3717.5,2.68997982]
[1753146348775,10.90548918,3717.9,3717.7,2.68983277]
[1753146348962,10.90548918,3717.9,3717.8,2.68976276]
[1753146349974,0.5,3718.7,3718.6,2.6891841]
[1753146350176,12.80544329,3719.2,3719.0,2.68889486]
[1753146350379,12.80544329,3719.2,3719.1,2.68882256]
[1753146350576,15.12442024,3719.6,3719.5,2.6885334]
[1753146350739,0.20479356,3720.2,3720.1,2.68809978]
[1753146350740,0.70479356,3720.2,3720.1,2.68809978]
[1753146350939,0.20479356,3720.2,3720.1,8.24809978]
[1753146351336,0.5,3721.0,3720.1,5.56]
[1753146351540,15.12442024,3721.2,3720.1,6.38481154]
[1753146351758,15.12442024,3721.2,3720.2,5.552]
[1753146351958,0.5,3721.1,3720.6,2.68773853]
[1753146352131,15.12442024,3721.2,3720.9,2.68748002]
[1753146352351,0.5,3722.4,3721.2,0.0926]
[1753146352554,0.47817597,3722.9,3721.4,2.68716074]
[1753146352753,0.47817597,3722.9,3721.4,2.68713227]
[1753146352754,0.5,3721.7,3721.4,2.68713227]
[1753146352949,0.47817597,3722.9,3721.5,0.01336604]
[1753146353165,0.5,3721.9,3721.3,5.54535118]
[1753146353346,0.5,3722.1,3721.4,0.01336568]
[1753146353581,0.5,3722.5,3721.4,5.541]
[1753146353886,0.5,3722.5,3721.2,0.0926]
[1753146353887,0.5,3722.3,3721.5,0.83208185]
[1753146354057,0.5,3721.7,3721.6,5.532]
[1753146354385,0.4446,3722.7,3720.8,6.448]
[1753146354535,0.5,3722.2,3721.6,0.1336]
[1753146354736,0.5,3722.0,3721.0,0.01336278]
[1753146354982,0.5,3722.2,3722.1,0.1336]
[1753146355140,0.5,3722.2,3722.1,5.525]
[1753146355342,0.5,3722.2,3722.1,0.1336]
[1753146355572,0.5,3722.2,3722.1,5.6546]
[1753146355902,0.47817777,3722.7,3722.1,5.6546]
[1753146356038,0.5,3722.4,3722.2,0.01335124]
[1753146356245,0.5,3722.4,3722.1,5.521]
[1753146356470,0.5,3722.2,3722.1,5.521]
[1753146356650,0.5,3722.4,3722.3,0.1336]
[1753146356852,0.5,3722.4,3722.1,5.521]
[1753146357134,0.4446,3723.2,3722.1,6.07443534]
[1753146357342,0.5,3722.6,3722.3,0.1336]
[1753146357660,0.4446,3723.2,3722.2,5.502]
[1753146357866,0.4446,3723.2,3722.5,0.1336]
[1753146358054,0.5,3722.4,3722.3,5.498]
[1753146358253,0.5,3722.6,3722.3,8.18450704]
[1753146358439,0.1336,3723.4,3722.3,5.6316]
[1753146358639,0.03356966,3723.6,3722.5,0.1336]
[1753146358839,0.002,3723.0,3722.3,5.498]
[1753146359083,0.002,3723.0,3722.4,0.83181205]
[1753146359247,0.002,3723.0,3722.5,5.478]
[1753146359248,0.5,3722.6,3722.5,5.478]
[1753146359448,0.5,3722.6,3722.5,5.6116]
[1753146359647,0.002,3723.0,3722.5,5.6106]
[1753146359866,0.002,3723.0,3722.6,0.01334475]
[1753146360069,0.002,3723.0,3722.9,2.68607805]
[1753146360236,0.002,3723.0,3722.9,2.81967805]
[1753146360456,0.502,3723.0,3722.9,0.1336]
[1753146360684,0.502,3723.0,3722.9,5.6006]
[1753146360907,0.002,3723.0,3722.9,5.6006]
[1753146361180,2.70584929,3723.6,3722.9,0.1336]
[1753146361385,2.68578942,3723.4,3723.0,5.461]
[1753146361542,0.02024078,3723.3,3723.0,5.461]
[1753146361744,0.02024078,3723.3,3722.9,0.1336]
[1753146361945,3.23508386,3724.3,3722.9,0.1336]
[1753146361946,4.78950081,3725.3,3723.1,5.457]
[1753146362294,2.81924846,3723.5,3723.2,0.57061437]
[1753146362454,2.81924846,3723.5,3723.3,0.57092301]
[1753146362455,0.1336,3723.5,3723.3,0.57092301]
[1753146362780,2.81924522,3723.5,3723.4,0.57092301]
[1753146362953,0.4446,3724.0,3723.3,5.448]
[1753146363157,2.68555434,3723.7,3723.0,9.46547863]
[1753146363355,0.1336,3723.8,3723.0,9.46547863]
[1753146363555,2.68557956,3723.6,3723.0,9.59907863]
[1753146363750,0.4446,3723.7,3723.0,9.59907863]
[1753146363751,3.13011725,3723.7,3723.0,9.59907863]
[1753146364088,3.47598773,3723.5,3723.4,6.1853181]
[1753146364245,2.68570083,3723.5,3723.4,6.75644247]
[1753146364594,2.685514,3723.7,3723.4,6.75644247]
[1753146364754,1.04850158,3724.8,3723.5,0.57112437]
[1753146364941,2.68464337,3724.9,3723.6,3.25668937]
[1753146365141,6.22922486,3725.7,3723.7,0.57134386]
[1753146365404,0.806106,3725.7,3725.4,13.3313515]
[1753146365691,2.68413141,3725.6,3725.5,0.57134386]
[1753146365888,2.92691754,3725.6,3725.5,0.13517264]
[1753146366087,11.57036106,3726.0,3723.1,0.4474]
[1753146366088,6.97799083,3726.0,3723.1,0.4474]
[1753146366264,3.0,3725.3,3723.5,0.1336]
[1753146366465,0.1336,3725.5,3723.5,0.1336]
[1753146366466,0.1336,3724.2,3723.5,0.1336]
[1753146366651,0.1336,3724.2,3723.6,5.414]
[1753146366853,2.68521822,3724.1,3723.4,5.411]
[1753146367055,0.1336,3723.8,3723.5,11.43439403]
[1753146367298,2.6855731,3723.6,3723.5,11.43439403]
[1753146368151,5.6855731,3723.6,3723.5,11.43439403]
[1753146368351,5.6855731,3723.6,3723.5,16.21001789]
[1753146369095,5.81930069,3723.5,3722.4,7.63154786]
[1753146369264,2.68628768,3722.7,3722.4,7.63154786]
[1753146369460,0.1336,3722.6,3722.4,7.63154786]
[1753146370103,0.1336,3722.6,3722.0,0.1336]
[1753146370250,0.20270432,3722.7,3721.7,14.1982179]
[1753146370452,0.1336,3722.2,3721.7,14.1982179]
[1753146370693,2.82018823,3722.2,3721.7,14.1982179]
[1753146370892,0.1336,3721.8,3721.7,14.1982179]
[1753146371109,0.1336,3721.8,3721.5,5.375]
[1753146371594,2.4105,3721.7,3719.5,0.4474]
[1753146371793,0.8035,3721.7,3719.6,2.68846112]
[1753146371999,2.68701633,3721.6,3719.7,0.31358611]
[1753146372149,3.0,3722.0,3719.1,2.68881855]
[1753146372150,0.7768,3721.3,3719.1,2.6887702]
[1753146372358,5.8276,3721.5,3719.0,0.26888949]
[1753146372359,0.8222,3721.1,3719.0,0.26888949]
[1753146372664,2.68788302,3720.4,3718.9,0.4474]
[1753146372865,2.68752183,3720.9,3718.7,2.68905626]
[1753146372866,0.8222,3720.2,3718.7,2.68905626]
[1753146373067,3.51025227,3720.2,3718.4,0.7787]
[1753146373373,6.1992,3720.2,3718.4,0.7787]
[1753146373576,0.4446,3720.1,3718.5,0.66031]
[1753146373793,5.372,3720.0,3718.5,0.66031]
[1753146373993,5.5730126,3720.0,3718.5,0.66031]
[1753146374198,2.68830113,3719.9,3718.7,2.68910292]
[1753146374410,5.367,3720.0,3718.5,0.66031]
[1753146374610,5.367,3720.0,3718.8,2.68901764]
[1753146374921,5.361,3719.9,3718.6,0.648471]
[1753146375068,0.8222,3720.2,3718.6,0.648471]
[1753146375270,1.2585,3720.9,3718.8,0.8035]
[1753146375579,1.251762,3720.8,3718.9,0.64002621]
[1753146375779,2.68851668,3719.6,3718.3,3.13677899]
[1753146375996,0.8071,3720.5,3718.4,0.02689328]
[1753146376204,5.356,3720.4,3719.0,2.68884049]
[1753146376370,5.354,3720.4,3719.0,2.68884049]
[1753146376717,0.8071,3720.5,3718.5,0.4474]
[1753146376871,0.8071,3720.5,3719.5,2.68848054]
[1753146377067,3.49497449,3720.5,3719.4,2.68855034]
[1753146377303,2.68789348,3720.4,3719.2,2.68875026]
[1753146377503,0.8071,3720.5,3719.1,0.4444]
[1753146377782,0.8071,3720.5,3719.7,2.68838732]
[1753146378186,0.8071,3720.5,3719.2,0.0268875]
[1753146378389,0.8071,3720.5,3718.3,0.4444]
[1753146378390,0.4371,3720.4,3718.3,0.4444]
[1753146378801,0.4371,3720.4,3718.8,2.68901972]
[1753146379010,2.68827527,3719.9,3718.8,2.68898218]
[1753146379192,0.4371,3719.9,3718.1,3.46560735]
[1753146379523,0.4371,3719.9,3718.6,2.68913334]
[1753146379721,2.68850906,3719.6,3718.2,0.39100074]
[1753146380013,0.8071,3720.5,3718.4,2.68932874]
[1753146380014,6.1421,3720.5,3718.4,2.68932874]
[1753146380211,6.1421,3720.5,3718.6,2.6891841]
[1753146380212,8.82996949,3720.5,3718.6,2.6891841]
[1753146380509,8.82996949,3720.5,3718.7,0.4454]
[1753146380510,0.8071,3720.5,3718.7,0.4454]
[1753146380820,2.68870353,3719.3,3718.7,0.001]
[1753146380971,0.4371,3720.4,3718.7,0.001]
[1753146380972,2.68802752,3720.2,3718.7,0.001]
[1753146381179,0.4371,3720.0,3718.7,0.001]
[1753146381721,0.1344,3718.8,3718.7,0.001]
[1753146382696,0.7549,3719.9,3718.7,0.001]
[1753146383015,0.1344,3719.4,3718.7,0.8488232]
[1753146383214,0.1344,3719.4,3718.7,0.5798]
[1753146383378,0.1344,3719.4,3719.3,2.68867797]
[1753146383582,0.7549,3719.9,3718.7,0.001]
[1753146383583,0.4371,3719.7,3718.7,0.001]
[1753146383782,0.7549,3719.9,3718.7,0.001]
[1753146383783,2.68859067,3719.5,3718.7,0.001]
[1753146383978,0.7549,3719.9,3718.7,0.001]
[1753146384782,0.7941,3721.0,3719.0,8.88651728]
[1753146384981,0.7941,3721.0,3720.7,2.68760085]
[1753146385219,0.7941,3721.0,3719.8,0.4444]
[1753146385428,0.7941,3721.0,3719.9,2.6882443]
[1753146385618,0.7941,3721.0,3719.8,5.7594]
[1753146385922,0.7941,3721.0,3720.4,2.68782382]
[1753146386121,0.7941,3721.0,3720.5,2.68778599]
[1753146386328,0.7533,3721.6,3720.0,0.7664]
[1753146386540,0.7533,3721.6,3721.1,2.68733305]
[1753146386835,0.7533,3722.2,3721.1,0.4444]
[1753146387003,0.7533,3722.2,3721.4,2.68712618]
[1753146387445,0.7533,3722.2,3721.1,0.4444]
[1753146387724,0.7533,3722.2,3721.2,2.68730212]
[1753146387892,0.7533,3722.2,3721.4,2.68709717]
[1753146388096,1.2614,3722.8,3721.5,2.68708185]
[1753146388295,1.2614,3722.8,3721.2,0.84595773]
[1753146388490,1.2614,3722.8,3721.4,2.68711111]
[1753146388728,1.2614,3722.8,3721.9,2.68678749]
[1753146388931,1.2614,3722.8,3721.4,2.68716074]
[1753146389136,1.2614,3722.8,3721.9,2.6867407]
[1753146389515,1.2614,3722.8,3721.2,0.8197]
[1753146389868,1.2614,3722.8,3721.1,0.4444]
[1753146390005,2.68645138,3722.4,3721.2,2.68723644]
[1753146390199,2.68645138,3722.4,3721.1,0.4444]
[1753146390200,2.68638392,3722.5,3721.3,2.68721462]
[1753146390438,2.64918392,3722.5,3721.4,2.687149]
[1753146390635,2.68649858,3722.4,3721.2,2.6872842]
[1753146390841,3.0,3722.5,3721.3,3.47127232]
[1753146391014,0.7841,3723.4,3722.7,2.68621168]
[1753146391215,0.7841,3724.0,3723.1,2.6859295]
[1753146391537,2.68541165,3723.9,3722.5,2.68636317]
[1753146391737,2.68543263,3723.8,3722.7,2.68616413]
[1753146392044,3.90648875,3724.0,3722.2,3.13095484]
[1753146392045,1.2212,3724.0,3722.2,3.13095484]
[1753146392213,0.7841,3724.0,3722.4,5.26]
[1753146392417,0.7841,3724.0,3722.5,0.47126366]
[1753146392825,0.7841,3724.0,3723.1,2.68591475]
[1753146393134,0.7841,3724.0,3722.5,0.4444]
[1753146393311,2.68555829,3723.7,3722.6,2.68627801]
[1753146393508,0.1336,3723.1,3722.5,0.1336]
[1753146393711,0.1336,3722.7,3722.1,5.3786]
[1753146394009,0.1336,3722.4,3721.8,2.68686409]
[1753146394221,0.1336,3722.4,3721.9,2.68679751]
[1753146394435,0.1336,3722.4,3721.7,0.1336]
[1753146394631,0.1336,3722.4,3721.2,0.1336]
[1753146394632,2.68696779,3721.7,3721.2,0.1336]
[1753146394835,2.68708853,3721.5,3719.6,1.2442]
[1753146395004,2.68716074,3721.4,3720.1,2.68805156]
[1753146395213,0.1336,3720.8,3720.0,2.82256552]
[1753146395443,0.1336,3720.3,3719.7,2.68838884]
[1753146395656,0.1336,3720.3,3720.0,2.68816499]
[1753146395819,0.1336,3720.3,3720.1,2.68809776]
[1753146396221,0.1336,3720.4,3720.3,2.68795527]
[1753146396426,0.7802,3721.5,3720.4,2.68788302]
[1753146396622,2.68659634,3722.2,3721.3,2.68722765]
[1753146396623,0.7774,3722.2,3721.3,2.68722765]
[1753146396828,0.7774,3722.2,3722.0,2.68671426]
[1753146397141,0.7774,3722.2,3721.7,2.68692917]
[1753146397448,0.7774,3722.2,3721.9,2.68674962]
[1753146397653,0.7774,3722.2,3721.3,2.68723295]
[1753146397814,0.7774,3722.2,3721.6,2.68697974]
[1753146398012,0.7774,3722.2,3721.7,2.68687727]
[1753146398254,0.7774,3722.2,3721.3,7.90516218]
[1753146398564,0.7774,3722.2,3721.6,2.68697833]
[1753146398740,0.7774,3722.2,3721.2,5.218]
[1753146398947,0.7774,3722.2,3721.3,7.90223295]
[1753146399117,0.7774,3722.2,3721.6,2.68701526]
[1753146399315,0.7774,3722.2,3721.5,2.68707046]
[1753146399517,0.7774,3722.2,3720.8,2.68754784]
[1753146399718,0.7774,3722.2,3721.0,2.68744961]
[1753146399919,0.7774,3722.2,3721.6,2.68697686]
[1753146400444,0.7774,3722.2,3721.5,7.8900763]
[1753146400649,0.7774,3722.2,3721.5,5.2]
[1753146401129,3.46404016,3722.2,3720.9,0.31319478]
[1753146401322,3.46404016,3722.2,3721.2,2.68729016]
[1753146401516,2.68665538,3722.1,3721.2,5.196]
[1753146401714,3.90110131,3722.2,3721.2,5.196]
[1753146401915,2.68667578,3722.1,3721.2,5.196]
[1753146402152,2.68667578,3722.1,3721.2,5.146]
[1753146402318,1.6,3721.9,3721.1,2.68736655]
[1753146402519,1.6,3721.9,3721.2,5.186]
[1753146402929,1.6,3721.9,3721.2,6.41774384]
[1753146403153,0.4371,3723.2,3721.3,0.4444]
[1753146403154,0.8216,3722.7,3721.3,0.4444]
[1753146403320,0.8216,3722.7,3722.0,2.68667059]
[1753146403637,0.8216,3722.7,3721.9,2.68679877]
[1753146403850,0.4371,3722.6,3721.3,2.68718553]
[1753146404075,0.4371,3722.6,3720.7,6.8914]
[1753146404238,0.4371,3722.6,3721.4,2.68712408]
[1753146404437,0.4371,3722.6,3720.8,0.68914]
[1753146404675,2.68678386,3722.0,3720.9,5.172]
[1753146405004,3.50846989,3721.9,3720.8,2.68759406]
[1753146405269,0.8216,3721.9,3721.0,2.68741144]
[1753146405471,0.8216,3721.9,3721.0,5.168]
[1753146405678,0.8216,3721.9,3721.0,6.86700055]
[1753146406039,0.8216,3721.9,3721.6,2.68701423]
[1753146406242,0.8216,3721.9,3721.5,2.6870718]
[1753146406243,0.9552,3721.9,3721.5,2.6870718]
[1753146406654,0.9552,3721.9,3721.2,0.1336]
[1753146406854,0.1336,3721.5,3721.3,5.163]
[1753146407148,0.1336,3721.5,3720.8,0.1336]
[1753146407347,0.8216,3721.9,3721.0,2.68743769]
[1753146407551,0.1336,3721.3,3721.1,2.68731219]
[1753146407885,0.8333,3722.5,3721.2,0.4279]
[1753146408180,0.7881,3723.0,3722.2,2.68658084]
[1753146408378,0.1336,3722.5,3722.4,2.68643885]
[1753146408537,0.1336,3722.5,3721.9,2.68674754]
[1753146408741,0.1336,3722.5,3722.0,7.83670069]
[1753146408976,0.1336,3722.5,3722.0,5.15]
[1753146409182,0.1336,3722.5,3722.2,2.68657735]
[1753146409340,0.1336,3722.5,3721.8,0.1336]
[1753146409671,0.1336,3722.5,3721.9,5.14]
[1753146409858,0.7881,3723.0,3722.4,2.68643885]
[1753146410051,0.1336,3722.8,3722.1,0.1336]
[1753146410247,0.1336,3722.8,3722.7,2.68622236]
[1753146410581,0.7881,3723.5,3722.7,2.68622236]
[1753146410582,0.1336,3723.2,3723.1,2.68593376]
[1753146410751,0.1336,3723.2,3722.7,5.5639]
[1753146410958,0.1336,3723.2,3722.8,5.13]
[1753146411306,0.1336,3723.2,3723.0,2.68595184]
[1753146411436,0.1336,3723.2,3722.9,0.4279]
[1753146411640,0.1336,3723.2,3722.8,5.124]
[1753146411859,0.1336,3723.2,3722.8,7.81014302]
[1753146412138,0.1336,3723.2,3722.8,5.124]
[1753146412375,0.1336,3723.2,3722.8,5.12]
[1753146412675,0.1336,3723.5,3722.9,0.5615]
[1753146412877,0.7981,3724.2,3724.1,2.68521253]
[1753146413087,0.1336,3724.4,3724.3,2.68504855]
[1753146413397,3.11279987,3724.9,3723.9,2.68534256]
[1753146413677,0.1336,3724.2,3723.9,2.68534256]
[1753146413846,0.1336,3724.2,3723.8,5.112]
[1753146414053,0.7981,3725.2,3724.0,2.68527414]
[1753146414253,0.7981,3725.2,3724.3,2.68505839]
[1753146414254,0.1336,3724.5,3724.3,2.68505839]
[1753146414567,0.1336,3724.5,3723.9,3.24685297]
[1753146414747,0.1336,3724.5,3724.1,2.68516266]
[1753146414949,0.1336,3724.5,3724.2,2.68513859]
[1753146415179,0.4281,3725.0,3723.8,5.112]
[1753146415376,0.1336,3724.3,3723.8,5.112]
[1753146415591,0.1336,3724.5,3724.2,2.68510056]
[1753146415969,0.1336,3724.5,3724.1,2.68519949]
[1753146416305,0.1336,3724.5,3723.9,0.1336]
[1753146416681,0.7981,3725.2,3724.5,2.68491701]
[1753146416869,0.7981,3725.2,3724.2,2.68506932]
[1753146416870,0.1336,3724.9,3724.3,0.1336]
[1753146417066,0.1336,3724.6,3724.3,5.088]
[1753146417308,0.7981,3725.2,3724.5,2.68492415]
[1753146417624,0.1336,3725.0,3724.5,2.68492415]
[1753146417808,0.1336,3725.0,3724.4,7.76896799]
[1753146417996,0.002,3725.3,3724.4,0.4279]
[1753146418185,0.1336,3724.7,3724.1,2.81880721]
[1753146418386,0.002,3725.3,3723.9,2.68535674]
[1753146418624,0.1336,3724.5,3723.8,0.5615]
[1753146418926,0.1336,3724.5,3724.0,2.68523149]
[1753146419224,0.1336,3724.5,3724.2,2.68512615]
[1753146419417,0.1336,3724.5,3724.0,2.68523168]
[1753146419797,0.1336,3724.5,3724.1,2.6852105]
[1753146420144,0.1336,3724.5,3724.0,2.68525945]
[1753146420430,0.002,3725.3,3722.9,0.4279]
[1753146420431,0.7636,3724.4,3722.9,0.4279]
[1753146420741,0.1336,3723.6,3723.0,0.1336]
[1753146420887,0.4281,3724.3,3723.3,2.68572679]
[1753146420888,0.1336,3723.4,3723.3,2.68572679]
[1753146421087,0.4281,3724.3,3723.0,2.6860059]
[1753146421289,0.1336,3723.6,3723.0,0.1336]
[1753146421503,2.68550985,3723.7,3722.7,5.058]
[1753146421700,0.1336,3723.3,3722.7,5.1916]
[1753146422036,0.4281,3724.3,3722.8,0.4547615]
[1753146422324,0.1336,3723.6,3723.0,2.81959645]
[1753146422532,0.1336,3723.6,3723.0,0.1336]
[1753146422827,0.7636,3724.4,3723.1,0.45475933]
[1753146422986,2.68522471,3724.1,3722.9,2.68605267]
[1753146423190,0.1336,3723.6,3723.0,0.1336]
[1753146423434,0.7636,3724.4,3722.7,5.044]